fUSD/lending_fUSD_20240214
["ID","MTS","AMOUNT","RATE_DAILY","PERIOD"]
[314020142,1707924421391,-513.0765524,0.00022241,2]
[314020143,1707924421416,-524.83009847,0.00022241,2]
[314020144,1707924421443,-1912.95752079,0.00022242,2]
[314020145,1707924421465,-945.90283649,0.00022242,2]
[314020146,1707924421487,-161.42119264,0.00022242,2]
[314020147,1707924421508,-563.76196448,0.00022242,2]
[314020148,1707924421530,-500.0,0.00022242,2]
[314020149,1707924421550,-436.19062659,0.00022243,2]
[314020150,1707924421572,-1238.23304299,0.00022243,2]
[314020151,1707924421592,-198.09299175,0.00022243,2]
[314020152,1707924421614,-448.87194362,0.00022243,2]
[314020153,1707924421634,-1009.43311603,0.00022243,2]
[314020154,1707924421655,-4270.20264567,0.00022243,2]
[314020155,1707924421677,-494.94082306,0.00022243,2]
[314020156,1707924421700,-160.62416138,0.00022243,2]
[314020157,1707924430722,184.05869594,0.00025004,30]
[314020158,1707924432101,-156.31655214,0.0002224,2]
[314020159,1707924432122,-300.0,0.00022241,2]
[314020160,1707924432143,-150.0,0.00022241,2]
[314020161,1707924432166,-39.78558825,0.00022243,2]
[314020162,1707924432191,-261.72893916,0.00022243,2]
[314020163,1707924432213,-282.85620668,0.00022244,2]
[314020164,1707924432234,-338.89802293,0.00022244,2]
[314020165,1707924432255,-386.75338456,0.00022244,2]
[314020166,1707924432279,-204.58087699,0.00022244,2]
[314020167,1707924432300,-521.50549424,0.00022244,2]
[314020168,1707924442125,-3113.88495612,0.00022243,2]
[314020169,1707924442836,-1611.09548663,0.00022243,2]
[314020170,1707924442855,-2388.90451337,0.00022243,2]
[314020172,1707924448522,315.35228282,0.00025004,30]
[314020173,1707924450806,-163.17920846,0.00022242,2]
[314020174,1707924450826,-754.97646533,0.00022243,2]
[314020175,1707924450845,-770.96312572,0.00022243,2]
[314020176,1707924450864,-2310.88120049,0.00022243,2]
[314020177,1707924459412,-155.0,0.00022242,2]
[314020178,1707924459432,-155.0,0.00022242,2]
[314020179,1707924459450,-339.61953931,0.00022242,2]
[314020180,1707924459470,-1293.0351173,0.00022242,2]
[314020181,1707924462970,184.98362258,0.00022142,2]
[314020182,1707924465033,175.09488492,0.00022142,2]
[314020183,1707924484866,2193.76943683,0.00022021,2]
[314020184,1707924500866,2193.76943683,0.00022021,2]
[314020185,1707924517007,628.28533909,0.00021572,2]
[314020186,1707924517457,1028.65603993,0.00022021,2]
[314020187,1707924519292,1103.59557124,0.00022021,2]
[314020188,1707924520861,1983.14920917,0.00021801,2]
[314020189,1707924521030,613.41685198,0.00022021,2]
[314020190,1707924525832,909.75778928,0.00022021,2]
[314020191,1707924525874,850.42651263,0.00022021,2]
[314020192,1707924528623,284.33320974,0.00022021,2]
[314020193,1707924533270,1028.65603993,0.00022021,2]
[314020194,1707924537012,337.09530678,0.00022021,2]
[314020195,1707924537295,1103.59557124,0.00022021,2]
[314020196,1707924541922,850.42651263,0.00022021,2]
[314020197,1707924543226,909.75778928,0.00022021,2]
[314020198,1707924548628,284.33320974,0.00022021,2]
[314020199,1707924549942,203.60375772,0.00022136,2]
[314020200,1707924553042,175.02,0.00019485,2]
[314020201,1707924553534,1028.65603993,0.00022021,2]
[314020202,1707924555295,289.39992315,0.00022021,2]
[314020203,1707924558627,198.09299175,0.0002202,2]
[314020204,1707924559102,-1912.95752079,0.00022232,2]
[314020205,1707924559123,-402.83821741,0.00022233,2]
[314020206,1707924559144,-155.0,0.00022234,2]
[314020207,1707924559166,-4662.34040196,0.00022235,2]
[314020208,1707924559185,-338.89802293,0.00022236,2]
[314020209,1707924559205,-4596.72171251,0.00022236,2]
[314020210,1707924559223,-261.72893916,0.00022236,2]
[314020211,1707924559245,-1238.23304299,0.00022237,2]
[314020212,1707924559265,-563.76196448,0.00022237,2]
[314020213,1707924559286,-689.09385357,0.00022237,2]
[314020214,1707924559312,-500.0,0.00022239,2]
[314020215,1707924559334,-1025.52736732,0.0002224,2]
[314020216,1707924559354,-388.56406727,0.00022241,2]
[314020217,1707924559375,-32324.72535286,0.00022242,2]
[314020218,1707924559397,-254.50392666,0.00022502,2]
[314020219,1707924559418,-203.6037577,0.00022898,2]
[314020220,1707924559440,-1451.2275713,0.00023752,2]
[314020221,1707924559462,-422.1325269,0.00024004,2]
[314020222,1707924559482,-300.0,0.00024162,2]
[314020223,1707924559503,-691.56,0.00024338,2]
[314020224,1707924559523,-175.09488492,0.00024365,2]
[314020225,1707924559545,-803.91,0.00024379,2]
[314020226,1707924559569,-250.0,0.00024393,2]
[314020227,1707924559591,-157.45,0.00024393,2]
[314020228,1707924559611,-200.0,0.00024411,2]
[314020229,1707924559631,-500.0,0.00024452,2]
[314020230,1707924559651,-169.79,0.00024452,2]
[314020231,1707924559671,-210.0,0.00024465,2]
[314020232,1707924559692,-258.192686,0.00024504,2]
[314020233,1707924559713,-250.0,0.00024563,2]
[314020234,1707924559737,-641.31,0.00024619,2]
[314020235,1707924559758,-713.74,0.00024656,2]
[314020236,1707924559780,-23.41218327,0.00024724,2]
[314020237,1707924559856,534.56929721,0.00022021,2]
[314020238,1707924559893,850.42651263,0.00022021,2]
[314020239,1707924560109,448.87194362,0.0002202,2]
[314020240,1707924566775,286.60922957,0.00022021,2]
[314020241,1707924571265,1028.65603993,0.00022021,2]
[314020242,1707924574112,-301.74109668,0.00022254,2]
[314020243,1707924577887,698.47560463,0.00022021,2]
[314020244,1707924578117,301.72406195,0.00022254,2]
[314020245,1707924585259,978.20004293,0.0002202,2]
[314020261,1707924635633,-402.83821741,0.00023658,2]
[314020262,1707924635644,-338.89802293,0.00023659,2]
[314020263,1707924635654,-203.6037577,0.0002366,2]
[314020264,1707924635664,-1912.95752079,0.00024421,2]
[314020265,1707924635674,-203.6037577,0.00024422,2]
[314020266,1707924635684,-690.32781673,0.00024724,2]
[314020267,1707924635694,-150.99,0.00024748,2]
[314020268,1707924635708,-200.0,0.00024751,2]
[314020269,1707924635717,-309.0,0.00024751,2]
[314020270,1707924635727,-282.61790926,0.00024754,2]
[314020271,1707924635737,-500.0,0.00024756,2]
[314020272,1707924635747,-444.15,0.00024764,2]
[314020273,1707924635757,-300.0,0.00024778,2]
[314020274,1707924635767,-150.0,0.00024778,2]
[314020275,1707924635777,-18440.95,0.00024779,2]
[314020276,1707924635786,-713.74,0.00024792,2]
[314020277,1707924635796,-3741.55,0.00024795,2]
[314020278,1707924635805,-2000.0,0.00024841,2]
[314020279,1707924635815,-500.0,0.00024847,2]
[314020280,1707924635824,-2705.0,0.00024849,2]
[314020281,1707924635834,-713.74,0.00024859,2]
[314020282,1707924635843,-4118.55,0.00024872,2]
[314020283,1707924635853,-2950.18690066,0.00024873,2]
[314020284,1707924635863,-300.0,0.000249,2]
[314020285,1707924635873,-5442.3273,0.000249,2]
[314020286,1707924635883,-713.74,0.00024927,2]
[314020287,1707924635893,-238.15,0.0002494,2]
[314020288,1707924635902,-200.0,0.00024971,2]
[314020289,1707924635912,-713.74,0.00024995,2]
[314020290,1707924635922,-300.0,0.00024998,2]
[314020291,1707924635931,-155.9251105,0.00024998,2]
[314020292,1707924635942,-159.04542817,0.00024998,2]
[314020293,1707924635951,-210.25698478,0.00024998,2]
[314020294,1707924635961,-159.93840249,0.00024998,2]
[314020295,1707924635971,-1337.4175513,0.00024998,2]
[314020296,1707924635983,-642.37818507,0.00024998,2]
[314020297,1707924635993,-2522.62052649,0.00024998,2]
[314020298,1707924636003,-198.80810889,0.00024998,2]
[314020299,1707924636013,-3174.91043355,0.00024999,2]
[314020300,1707924636022,-2974.93238735,0.00025,2]
[314020301,1707924636032,-228.74225568,0.00025,2]
[314020302,1707924636042,-1250.0,0.00025,3]
[314020303,1707924636052,-204.58087699,0.00025002,2]
[314020304,1707924636061,-200.40974963,0.00025002,2]
[314020306,1707924636071,-386.75338456,0.00025002,2]
[314020308,1707924636080,-526.09306064,0.00025002,2]
[314020310,1707924636090,-771.40980765,0.00025002,2]
[314020312,1707924636100,-163.17920846,0.00025002,2]
[314020314,1707924636109,-375.69833359,0.00025002,2]
[314020316,1707924636120,-632.53888103,0.00025003,2]
[314020317,1707924636131,-772.02561278,0.00025003,2]
[314020318,1707924636141,-311.93606358,0.00025004,2]
[314020319,1707924636151,-504.20181444,0.00025004,2]
[314020320,1707924636160,-155.0,0.00025004,2]
[314020321,1707924636173,-3697.69464102,0.00025004,4]
[314020322,1707924636183,-2029.03801024,0.00025004,2]
[314020323,1707924636193,-159.72247724,0.00025004,2]
[314020324,1707924636203,-155.25213885,0.00025004,2]
[314020325,1707924636212,-626.44937518,0.00025004,2]
[314020326,1707924636222,-302.0457605,0.00025004,2]
[314020327,1707924636231,-1958.15673038,0.00025004,2]
[314020328,1707924636241,-200.0,0.00025004,2]
[314020329,1707924636251,-284.38164498,0.00025004,2]
[314020330,1707924636262,-229.67634516,0.00025004,2]
[314020331,1707924636271,-1233.25817897,0.00025004,2]
[314020332,1707924636281,-527.07330151,0.00025004,2]
[314020333,1707924636292,-2319.85512799,0.00025004,2]
[314020334,1707924636302,-843.31802643,0.00025004,2]
[314020335,1707924636314,-2319.19468381,0.00025004,2]
[314020336,1707924636324,-161.39054706,0.00025004,2]
[314020337,1707924636334,-494.8193932,0.00025004,2]
[314020338,1707924636344,-348.28272679,0.00025004,2]
[314020339,1707924636354,-598.17486668,0.00025004,2]
[314020340,1707924636363,-935.80843748,0.00025004,2]
[314020341,1707924636374,-1081.97889004,0.00025004,2]
[314020342,1707924636385,-533.01552841,0.00025004,2]
[314020343,1707924636394,-156.28841716,0.00025004,2]
[314020344,1707924636404,-689.09385357,0.00025004,2]
[314020345,1707924636414,-1238.23304299,0.00025004,2]
[314020346,1707924636424,-197.45546108,0.00025004,2]
[314020347,1707924636433,-280.74610907,0.00025004,2]
[314020348,1707924636442,-4594.82847439,0.00025004,2]
[314020349,1707924636452,-251.41676213,0.00025004,2]
[314020350,1707924636462,-4545.09179447,0.00025005,2]
[314020351,1707924636471,-155.13106839,0.00025006,2]
[314020352,1707924636482,-155.0,0.00025006,2]
[314020353,1707924636491,-1885.57060588,0.00025006,2]
[314020354,1707924636501,-25132.03257553,0.00025006,2]
[314020355,1707924636511,-1183.67699352,0.00025007,2]
[314020356,1707924636521,-545.98654233,0.00025007,2]
[314020357,1707924636531,-3969.881201,0.0002501,2]
[314020358,1707924636540,-713.74,0.00025062,2]
[314020359,1707924636550,-168.19,0.00025111,2]
[314020360,1707924636559,-713.74,0.0002513,2]
[314020361,1707924636569,-165.3,0.00025133,2]
[314020362,1707924636578,-250.0,0.00025134,2]
[314020363,1707924636588,-1069.61,0.00025172,2]
[314020364,1707924636598,-2991.45,0.00025176,2]
[314020365,1707924636607,-203.6037577,0.00025184,2]
[314020366,1707924636616,-713.74,0.00025197,2]
[314020367,1707924636628,-156.89159203,0.00025198,2]
[314020368,1707924636638,-150.0,0.00025257,2]
[314020369,1707924636647,-713.74,0.00025265,2]
[314020370,1707924636657,-713.74,0.00025333,2]
[314020371,1707924636666,-713.74,0.000254,2]
[314020372,1707924636676,-713.74,0.00025468,2]
[314020373,1707924636685,-713.74,0.00025536,2]
[314020374,1707924636695,-713.74,0.00025603,2]
[314020375,1707924636704,-713.74,0.00025671,2]
[314020376,1707924636713,-713.74,0.00025738,2]
[314020377,1707924636723,-713.74,0.00025806,2]
[314020378,1707924636732,-713.74,0.00025874,2]
[314020379,1707924636743,-713.74,0.00025941,2]
[314020380,1707924636752,-203.6037577,0.00025945,2]
[314020381,1707924636761,-1069.61,0.0002643,2]
[314020382,1707924636770,-2544.99413387,0.00026598,7]
[314020383,1707924636779,-166.08656206,0.00026598,2]
[314020384,1707924636789,-203.6037577,0.00026707,2]
[314020385,1707924636808,-1300.0,0.00027,3]
[314020386,1707924636820,-150.0,0.00027036,2]
[314020387,1707924636829,-750.0,0.00027135,2]
[314020388,1707924636839,-210.0,0.00027256,2]
[314020389,1707924636849,-631.3,0.00027397,2]
[314020390,1707924636858,-1006.0,0.000274,2]
[314020391,1707924636868,-203.6037577,0.00027469,2]
[314020392,1707924636878,-169.79,0.00027508,2]
[314020393,1707924636887,-631.3,0.00027556,2]
[314020394,1707924636896,-217.38,0.00027619,2]
[314020395,1707924636906,-1069.61,0.00027689,2]
[314020396,1707924636915,-150.0,0.000277,2]
[314020397,1707924636925,-631.3,0.00027714,2]
[314020398,1707924636934,-497.60929749,0.00027718,2]
[314020399,1707924636944,-155.0,0.00027718,2]
[314020400,1707924636953,-4660.7278,0.000278,2]
[314020401,1707924636962,-631.3,0.00027872,2]
[314020402,1707924636972,-64218.4228,0.000279,2]
[314020403,1707924636981,-397.91284871,0.00027998,2]
[314020404,1707924636991,-156.10743605,0.00027998,2]
[314020405,1707924637001,-155.0,0.00027998,2]
[314020406,1707924637010,-1055.77540635,0.00027998,2]
[314020407,1707924637019,-491.37,0.00027998,2]
[314020408,1707924637028,-2151.0809935,0.00027998,2]
[314020409,1707924637037,-216.81499801,0.00027998,2]
[314020410,1707924637047,-216.34118359,0.00027998,2]
[314020411,1707924637056,-655.03756322,0.00027998,2]
[314020412,1707924637066,-1143.08375452,0.00027998,2]
[314020413,1707924637075,-528.0715305,0.00027998,2]
[314020414,1707924637085,-178.83592973,0.00027998,2]
[314020415,1707924637094,-2332.65275521,0.00027998,2]
[314020416,1707924637103,-491.39275006,0.00027998,2]
[314020417,1707924637113,-280.95359764,0.00027998,2]
[314020418,1707924637122,-191.95382053,0.00027998,2]
[314020419,1707924637133,-231.33733691,0.00027999,2]
[314020420,1707924637142,-3645.7282088,0.00027999,2]
[314020421,1707924637151,-172026.49899771,0.00028,2]
[314020422,1707924637161,-200.26125164,0.00028,2]
[314020423,1707924637170,-631.3,0.0002803,2]
[314020424,1707924637179,-453.01,0.00028107,2]
[314020425,1707924637188,-631.3,0.00028189,2]
[314020426,1707924637197,-203.6037577,0.00028231,2]
[314020427,1707924637206,-453.01,0.00028255,2]
[314020428,1707924637215,-631.3,0.00028347,2]
[314020429,1707924637225,-453.01,0.00028403,2]
[314020430,1707924637234,-631.3,0.00028505,2]
[314020431,1707924637243,-453.01,0.0002855,2]
[314020432,1707924637253,-631.3,0.00028664,2]
[314020433,1707924637262,-453.01,0.00028698,2]
[314020434,1707924637272,-631.3,0.00028822,2]
[314020435,1707924637281,-453.01,0.00028846,2]
[314020436,1707924637296,-1069.61,0.00028947,2]
[314020437,1707924637306,-203.6037577,0.00028993,2]
[314020438,1707924637578,-453.01,0.00028994,2]
[314020439,1707924637589,-1350.0,0.00029,3]
[314020440,1707924637599,-453.01,0.00029142,2]
[314020441,1707924637608,-165.3,0.00029282,2]
[314020442,1707924637617,-453.01,0.0002929,2]
[314020443,1707924637629,-185.99,0.00029333,2]
[314020444,1707924637638,-453.01,0.00029438,2]
[314020445,1707924637647,-453.01,0.00029586,2]
[314020446,1707924637656,-453.01,0.00029734,2]
[314020447,1707924637666,-203.6037577,0.00029755,2]
[314020448,1707924637675,-453.01,0.00029882,2]
[314020449,1707924637684,-872.6176,0.00029897,2]
[314020450,1707924637693,-207.0786,0.00029897,2]
[314020451,1707924637702,-875.6893,0.00029897,2]
[314020452,1707924637711,-3940.6771,0.00029897,2]
[314020453,1707924637720,-2614.5634,0.00029897,2]
[314020454,1707924637729,-200.0,0.00029905,120]
[314020455,1707924637738,-180.0,0.00029982,2]
[314020456,1707924637747,-4240.34201131,0.00029999,2]
[314020457,1707924637756,-504.79,0.00029999,2]
[314020458,1707924637765,-499.99,0.00029999,2]
[314020459,1707924637775,-500.0,0.0003,2]
[314020460,1707924637784,-258.23799594,0.0003,2]
[314020461,1707924637793,-155.0,0.0003,2]
[314020462,1707924637803,-549.08990811,0.0003,2]
[314020463,1707924637813,-549.08990811,0.0003,2]
[314020464,1707924637822,-549.08990811,0.0003,2]
[314020465,1707924637831,-549.08990811,0.0003,2]
[314020466,1707924637841,-549.08990811,0.0003,2]
[314020467,1707924637850,-549.08990811,0.0003,2]
[314020468,1707924637860,-549.08990811,0.0003,2]
[314020469,1707924637870,-549.08990811,0.0003,2]
[314020470,1707924637883,-453.01,0.0003003,2]
[314020471,1707924637893,-453.01,0.00030178,2]
[314020472,1707924637903,-1069.61,0.00030206,2]
[314020473,1707924637913,-453.01,0.00030325,2]
[314020474,1707924637922,-453.01,0.00030473,2]
[314020475,1707924637932,-203.6037577,0.00030517,2]
[314020476,1707924637942,-169.79,0.00030565,2]
[314020477,1707924637951,-453.01,0.00030621,2]
[314020478,1707924637962,-453.01,0.00030769,2]
[314020479,1707924637971,-453.01,0.00030917,2]
[314020480,1707924637980,-358.58,0.0003095,2]
[314020481,1707924637989,-2741.43,0.00031101,2]
[314020482,1707924637998,-166.7,0.00031125,2]
[314020483,1707924638008,-2527.38219704,0.00031269,7]
[314020484,1707924638018,-203.6037577,0.00031279,2]
[314020485,1707924638028,-185.99,0.00031597,2]
[314020486,1707924638037,-157.0,0.00031625,2]
[314020487,1707924638047,-171.08,0.00031644,2]
[314020488,1707924638057,-180.0,0.00031644,2]
[314020489,1707924638066,-171.8,0.00031684,2]
[314020491,1707924638077,-203.6037577,0.00032041,2]
[314020492,1707924638087,-152.1,0.00032307,2]
[314020493,1707924638098,-1000.0,0.00032491,2]
[314020494,1707924638108,-358.58,0.00032594,2]
[314020495,1707924638118,-153.97,0.000326,2]
[314020496,1707924638132,-548.36818583,0.00032701,3]
[314020498,1707924638144,-203.6037577,0.00032803,2]
[314020499,1707924638154,-152.14,0.00032877,2]
[314020501,1707924638163,-152.61,0.00032877,2]
[314020502,1707924638173,-4000.0,0.000329,2]
[314020503,1707924638182,-45661.74540543,0.00033,3]
[314020504,1707924638199,-280.5746488,0.00033,3]
[314020508,1707924638219,-930.11934961,0.00033,3]
[314020511,1707924638239,-596.73160215,0.00033,3]
[314020512,1707924638250,-2530.82899401,0.00033,3]
[314020513,1707924638261,-767.80874563,0.00033,4]
[314020514,1707924638272,-464.0295362,0.00033,4]
[314020515,1707924638284,-1000.0,0.00033,2]
[314020516,1707924638299,-157.0,0.00033268,2]
[314020517,1707924638309,-8267.67,0.000335,2]
[314020518,1707924638319,-8267.67,0.000335,2]
[314020519,1707924638330,-8267.67,0.000335,2]
[314020520,1707924638343,-8267.67,0.000335,2]
[314020521,1707924638353,-8267.67,0.000335,2]
[314020522,1707924638363,-8267.67,0.000335,2]
[314020523,1707924638376,-8267.67,0.000335,2]
[314020524,1707924638387,-8267.67,0.000335,2]
[314020525,1707924638397,-8267.67,0.000335,2]
[314020526,1707924638407,-8267.67,0.000335,2]
[314020527,1707924638417,-8267.67,0.000335,2]
[314020528,1707924638427,-7283.96272418,0.000335,2]
[314020529,1707924638440,-983.70727582,0.000335,2]
[314020530,1707924638449,-643.09778907,0.000335,2]
[314020531,1707924638461,-5000.0,0.000335,2]
[314020532,1707924638566,-2624.57221093,0.000335,2]
[314020533,1707924638576,-940.83949854,0.000335,2]
[314020534,1707924638590,-7326.83050146,0.000335,2]
[314020535,1707924638599,-8267.67,0.000335,2]
[314020536,1707924638609,-8267.67,0.000335,2]
[314020537,1707924638618,-8267.67,0.000335,2]
[314020538,1707924638629,-751.55882062,0.000335,2]
[314020539,1707924638641,-7516.11117938,0.000335,2]
[314020540,1707924638650,-8267.67,0.000335,2]
[314020541,1707924638660,-7376.21882062,0.000335,2]
[314020574,1707924639041,-261.72893916,0.00023657,2]
[314020575,1707924639051,-891.45117938,0.000335,2]
[314020576,1707924639061,-272.05,0.0003355,2]
[314020577,1707924639072,-203.6037577,0.00033564,2]
[314020578,1707924639083,-169.79,0.00033621,2]
[314020579,1707924639092,-200.0,0.00033643,120]
[314020580,1707924639101,-168.06,0.00033653,2]
[314020581,1707924639111,-185.99,0.00033861,2]
[314020582,1707924639120,-4091.20112376,0.00034,4]
[314020583,1707924639133,-7915.82040669,0.00034,4]
[314020584,1707924639183,-2263.07743509,0.00034,4]
[314020585,1707924639198,-35729.90103446,0.00034,4]
[314020586,1707924639207,-358.58,0.00034238,2]
[314020587,1707924639217,-203.6037577,0.00034326,2]
[314020588,1707924639227,-353.8445442,0.00034398,4]
[314020589,1707924639238,-2592.0517844,0.00034398,4]
[314020590,1707924639252,-412.78500001,0.00034398,4]
[314020591,1707924639264,-4963.49662326,0.00034398,4]
[314020592,1707924639324,-0.85165215,0.00034398,4]
[314020593,1707924639344,-2147.392287,0.00034398,4]
[314020600,1707924640860,-330.946,0.00034398,4]
[314020601,1707924640917,-347.20365578,0.00034398,4]
[314020602,1707924640974,-1013.13308408,0.00034398,4]
[314020603,1707924641680,-2040.97228727,0.00034398,4]
[314020604,1707924641690,-1200.0,0.00034521,2]
[314020605,1707924641701,-155.0,0.00034599,2]
[314020606,1707924641711,-1411.965,0.00034689,2]
[314020607,1707924641722,-261.22966269,0.00034699,8]
[314020608,1707924641732,-3741.55,0.00034713,2]
[314020609,1707924641742,-157.63736441,0.00034787,4]
[314020610,1707924641753,-4683.59404594,0.00034787,2]
[314020611,1707924641762,-374.60734338,0.00034787,4]
[314020612,1707924641771,-3047.06990534,0.00034787,4]
[314020613,1707924641780,-418.31173898,0.00034788,4]
[314020614,1707924641789,-156.15106252,0.00034788,4]
[314020615,1707924641798,-155.00059307,0.00034789,4]
[314020616,1707924641807,-5055.65161888,0.00034789,4]
[314020617,1707924641816,-16773.29317984,0.0003479,2]
[314020618,1707924641826,-16773.29317981,0.0003479,2]
[314020619,1707924641838,-16773.29317981,0.0003479,2]
[314020620,1707924641848,-16773.29317981,0.0003479,2]
[314020621,1707924641858,-17571.52695127,0.00034799,2]
[314020622,1707924641867,-17571.52695127,0.00034799,2]
[314020623,1707924641878,-17571.52695127,0.00034799,2]
[314020625,1707924641888,-17571.52695127,0.00034799,2]
[314020627,1707924641898,-17571.52695127,0.00034799,2]
[314020629,1707924641907,-1241.6513391,0.000349,2]
[314020631,1707924641916,-153.97,0.000349,2]
[314020633,1707924641925,-153.97,0.000349,2]
[314020635,1707924641936,-157.0,0.00034912,2]
[314020637,1707924641946,-100000.0,0.00035,15]
[314020639,1707924641957,-74530.12636012,0.00035,4]
[314020641,1707924641966,-228.65418055,0.00035,7]
[314020643,1707924641976,-165.0,0.00035,2]
[314020645,1707924641986,-436.01862455,0.00035,4]
[314020647,1707924641996,-502.2306202,0.00035,2]
[314020649,1707924642006,-258.62,0.00035,7]
[314020651,1707924642015,-250.0,0.00035,2]
[314020652,1707924642024,-150.0,0.00035,2]
[314020654,1707924642033,-150.0,0.00035,2]
[314020656,1707924642042,-258.62,0.00035137,7]
[314020658,1707924642051,-441.63582621,0.00035142,4]
[314020660,1707924642060,-16773.29317981,0.00035166,2]
[314020662,1707924642069,-258.62,0.00035274,7]
[314020664,1707924642078,-258.62,0.00035411,7]
[314020666,1707924642087,-152.94099915,0.000355,2]
[314020668,1707924642096,-217.20266111,0.000355,2]
[314020671,1707924642106,-258.62,0.00035548,7]
[314020672,1707924642115,-150.0,0.00035548,2]
[314020674,1707924642125,-150.0,0.00035548,2]
[314020676,1707924642136,-646349.07584897,0.000356,3]
[314020679,1707924642148,-2434.7397,0.000356,3]
[314020689,1707924642296,-3183.57143527,0.000356,3]
[314020690,1707924642308,-13556.4588,0.000356,3]
[314020730,1707924643427,-505.24709433,0.0003469,2]
[314020731,1707924643436,-296.75290567,0.000356,3]
[314020732,1707924643448,-534045.02524904,0.000356,3]
[314020733,1707924643457,-8267.67,0.000356,3]
[314020734,1707924643467,-8267.67,0.000356,3]
[314020735,1707924643476,-8267.67,0.000356,3]
[314020736,1707924643486,-8267.67,0.000356,3]
[314020737,1707924643495,-8267.67,0.000356,3]
[314020738,1707924643504,-8267.67,0.000356,3]
[314020739,1707924643514,-8267.67,0.000356,3]
[314020740,1707924643523,-8267.67,0.000356,3]
[314020741,1707924643532,-8267.67,0.000356,3]
[314020742,1707924643541,-8267.67,0.000356,3]
[314020743,1707924643550,-8267.67,0.000356,3]
[314020744,1707924643560,-8267.67,0.000356,3]
[314020745,1707924643569,-8267.67,0.000356,3]
[314020749,1707924643738,-8267.67,0.000356,3]
[314020750,1707924643747,-8267.67,0.000356,3]
[314020751,1707924643756,-8267.67,0.000356,3]
[314020752,1707924643765,-8267.67,0.000356,3]
[314020754,1707924643774,-8267.67,0.000356,3]
[314020755,1707924643783,-8267.67,0.000356,3]
[314020756,1707924643793,-8267.67,0.000356,3]
[314020757,1707924643802,-152.14,0.00035616,2]
[314020758,1707924643811,-17571.52695127,0.00035654,2]
[314020759,1707924643819,-258.62,0.00035685,7]
[314020760,1707924643828,-275.84,0.000357,7]
[314020761,1707924643837,-1200.0,0.00035798,2]
[314020762,1707924643847,-5000.0,0.00035807,3]
[314020763,1707924643856,-258.62,0.00035822,7]
[314020764,1707924643865,-358.58,0.00035882,2]
[314020765,1707924643874,-269.1633686,0.00035959,7]
[314020766,1707924643885,-155.0,0.00035969,2]
[314020767,1707924643894,-5000.0,0.0003598,2]
[314020768,1707924643903,-100000.0,0.00036,16]
[314020769,1707924643912,-150.0,0.00036,20]
[314020770,1707924643921,-177.3,0.00036,2]
[314020771,1707924643929,-150.0,0.00036,2]
[314020772,1707924643938,-150.0,0.00036096,2]
[314020773,1707924643947,-185.99,0.00036125,2]
[314020774,1707924643956,-152.94099915,0.00036244,2]
[314020775,1707924643966,-1241.65133893,0.00036278,2]
[314020776,1707924643975,-177.3,0.00036548,2]
[314020777,1707924643986,-1000.0,0.00036552,2]
[314020778,1707924643995,-157.0,0.00036556,7]
[314020779,1707924644006,-2223.56862343,0.00036612,2]
[314020780,1707924644017,-301.47612531,0.00036612,2]
[314020781,1707924644028,-1491.715,0.00036612,3]
[314020782,1707924644037,-169.79,0.00036678,2]
[314020783,1707924644047,-348.71943713,0.00036712,2]
[314020784,1707924644055,-399.80935983,0.00036712,2]
[314020785,1707924644066,-508.15239736,0.00036712,2]
[314020786,1707924644075,-500.0,0.00036712,2]
[314020787,1707924644084,-513.16278751,0.00036712,2]
[314020788,1707924644093,-553.03,0.00036712,2]
[314020789,1707924644102,-500.0,0.00036712,2]